{"text_format":"3","workbook":"xlsx","n_sheets":2,"sheets":["Hypotheekcalculator","Over"],"not_rendered":{"images":1,"defined_names":1},"read":"whole","date_system":"1900"}

{"sheet":"Hypotheekcalculator","index":0,"n_rows":27,"n_cols":9,"rows_kept":27,"merged":[[0,1,0,6],[2,3,2,6]]}
[null,"Calculator hypotheekaflossing"]
[{"$nulls":8},"HYPOTHEEKBEREKENING op Vertex42.com"]
[null,"Samengestelde periode",12," Voer 12 in voor Amerikaanse hypotheekten of 2 voor Canadese hypotheken.",{"$nulls":4},"https://www.vertex42.com/Calculators/mortgage-calculators.html"]
[]
[null,"Hypotheekinformatie","Optie #1","Optie #2","Optie #3","Optie #4","Optie #5"]
[null,"Geleend bedrag",{"v":175000,"d":"175,000.00"},{"v":200000,"d":"200,000.00"},{"v":225000,"d":"225,000.00"},{"$nulls":3},"← Voer elk geleend bedrag in"]
[null,"Jaarlijks rentepercentage",{"v":0.06,"d":"6.000%"},{"v":0.06,"d":"6.000%"},{"v":0.06,"d":"6.000%"},{"$nulls":3},"← Voer elk rentepercentage in"]
[null,"Looptijd (in jaren)",30,30,30,{"$nulls":3},"← Voer de duur van de lening in jaren in"]
[]
[null,"BETALING"]
[null,"Maandelijkse rentepercentage",{"$f":"IF(COUNTA(C6,C7,C8)<3,\" - \",((1+C7/$C$3)^($C$3/12))-1)","v":{"v":0.004999999999999893,"d":"0.500%"}},{"$f":"IF(COUNTA(D6,D7,D8)<3,\" - \",((1+D7/$C$3)^($C$3/12))-1)","v":{"v":0.004999999999999893,"d":"0.500%"}},{"v":0.004999999999999893,"d":"0.500%"},{"$f":"IF(COUNTA(F6,F7,F8)<3,\" - \",((1+F7/$C$3)^($C$3/12))-1)","v":" - "}," - "]
[null,"Maandelijkse betaling (PI)",{"$f":"IF(COUNTA(C6,C7,C8)<3,\" - \",PMT(C11,C8*12,-C6))","v":{"v":1049.2134190173022,"d":"1,049.21"}},{"$f":"IF(COUNTA(D6,D7,D8)<3,\" - \",PMT(D11,D8*12,-D6))","v":{"v":1199.1010503054883,"d":"1,199.10"}},{"v":1348.9886815936745,"d":"1,348.99"},{"$f":"IF(COUNTA(F6,F7,F8)<3,\" - \",PMT(F11,F8*12,-F6))","v":" - "}," - "]
[null,"Extra maandelijkse betaling",{"$nulls":6},"← (optioneel) Geef extra maandelijkse betalingen op"]
[null,"Totaal MAANDELIJKSE BETALING",{"$f":"IF(COUNTA(C6,C7,C8)<3,\" - \",C12+C13)","v":{"v":1049.2134190173022,"d":"1,049.21"}},{"$f":"IF(COUNTA(D6,D7,D8)<3,\" - \",D12+D13)","v":{"v":1199.1010503054883,"d":"1,199.10"}},{"v":1348.9886815936745,"d":"1,348.99"}," - "," - "]
[]
[null,"TOTALEN"]
[null,"Aantal betalingen",{"$f":"IF(COUNTA(C6,C7,C8)<3,\" - \",NPER(C11,-C14,C6))","v":{"v":360.0000000000001,"d":"360.0"}},{"$f":"IF(COUNTA(D6,D7,D8)<3,\" - \",NPER(D11,-D14,D6))","v":{"v":359.99999999999994,"d":"360.0"}},{"v":359.99999999999994,"d":"360.0"},{"$f":"IF(COUNTA(F6,F7,F8)<3,\" - \",NPER(F11,-F14,F6))","v":" - "}," - "]
[null,"Looptijd in jaren",{"$f":"IF(COUNTA(C6,C7,C8)<3,\" - \",C17/12)","v":{"v":30.00000000000001,"d":"30.00"}},{"$f":"IF(COUNTA(D6,D7,D8)<3,\" - \",D17/12)","v":{"v":29.999999999999996,"d":"30.00"}},{"v":29.999999999999996,"d":"30.00"},{"$f":"IF(COUNTA(F6,F7,F8)<3,\" - \",F17/12)","v":" - "}," - "]
[null,"Totaal betalingen",{"$f":"IF(COUNTA(C6,C7,C8)<3,\" - \",C17*C14)","v":{"v":377716.83084622887,"d":"377,716.83"}},{"$f":"IF(COUNTA(D6,D7,D8)<3,\" - \",D17*D14)","v":{"v":431676.3781099757,"d":"431,676.38"}},{"v":485635.92537372274,"d":"485,635.93"},{"$f":"IF(COUNTA(F6,F7,F8)<3,\" - \",F17*F14)","v":" - "}," - "]
[null,"Totaal betaalde RENTE",{"$f":"IF(COUNTA(C6,C7,C8)<3,\" - \",C19-C6)","v":{"v":202716.83084622887,"d":"202,716.83"}},{"$f":"IF(COUNTA(D6,D7,D8)<3,\" - \",D19-D6)","v":{"v":231676.37810997572,"d":"231,676.38"}},{"v":260635.92537372274,"d":"260,635.93"},{"$f":"IF(COUNTA(F6,F7,F8)<3,\" - \",F19-F6)","v":" - "}," - "]
[]
[null,"SALDO voor jaar...",5,5,5,{"$nulls":3},"← Voer het jaar in voor het schatten van het saldo en het vermogen"]
[null,"Onroerendgoedwaarde",{"$f":"C6","v":{"v":175000,"d":"175,000.00"}},{"$f":"D6","v":{"v":200000,"d":"200,000.00"}},{"v":225000,"d":"225,000.00"},{"v":0,"d":"0.00"},{"v":0,"d":"0.00"},null,"← Voer de geraamde onroerendgoedwaarde in voor het opgegeven jaar"]
[null,"Leningsaldo",{"$f":"IF(COUNTA(C6,C7,C8,C22)<4,\" - \",-FV(C11,C22*12,-C14,C6))","v":{"v":162845.1244399341,"d":"162,845.12"}},{"$f":"IF(COUNTA(D6,D7,D8,D22)<4,\" - \",-FV(D11,D22*12,-D14,D6))","v":{"v":186108.71364563896,"d":"186,108.71"}},{"v":209372.30285134388,"d":"209,372.30"}," - "," - "]
[null,"EIGEN VERMOGEN",{"$f":"IF(COUNTA(C6,C7,C8,C22,C23)<5,\" - \",C23-C24)","v":{"v":12154.875560065906,"d":"12,154.88"}},{"$f":"IF(COUNTA(D6,D7,D8,D22,D23)<5,\" - \",D23-D24)","v":{"v":13891.286354361044,"d":"13,891.29"}},{"v":15627.697148656123,"d":"15,627.70"}," - "," - "]
[]
["[42]"]

{"sheet":"Over","index":1,"n_rows":22,"n_cols":2,"rows_kept":22}
[]
[null,"HYPOTHEEKAFLOSSING BEREKENEN op Vertex42.com"]
[null,"https://www.vertex42.com/Calculators/mortgage-payment-calculator.html"]
[]
[null,"Over deze sjabloon"]
[null,"Bereken de maandelijkse aflossing en rentebetaling voor een traditioneel hypothecaire hypotheek met deze eenvoudige hypotheek calculator, u aangeboden door Vertex42.com. Voer het geleende bedrag, het rentepercentage, de termijn en extra maandelijkse betalingen in om verschillende scenario's te vergelijken. Schat het eigen vermogen en het saldo na een bepaald aantal jaren in."]
[]
[null,"Hoe deze sjabloon te gebruiken"]
[null,"Klik op de onderstaande koppeling om naar vertex42.com te gaan voor meer informatie over het gebruik van deze sjabloon."]
[null,"Hoe deze sjabloon te gebruiken"]
[]
[null,"Meer hypotheekcalculators"]
[null,"Klik op de onderstaande koppeling om naar Vertex42.com te gaan en andere hypotheekcalculators te downloaden."]
[null,"Meer hypotheekcalculators"]
[]
[null,"Vrijwaring"]
[null,"Deze calculator is bedoeld voor educatieve doeleinden. De calculator bevat geen afrondingen, vergoedingen, gemiste betalingen, onroerendgoedbelasting, verzekeringen en andere factoren die van belang kunnen zijn bij het nemen van een lening of het kopen/verkopen van een woning. Neem contact op met een gekwalificeerde professional voor financiële beslissingen."]
[]
[null,"Over Vertex42"]
[null,"Vertex42 biedt professioneel ontworpen werkbladsjablonen voor bedrijven, thuisgebruik en het onderwijs. De meeste van deze sjablonen kunt u gratis downloaden. Deze verzameling omvat een verscheidenheid aan agenda’s, planners en kalenders, en ook werkbladen voor uw persoonlijke financiën, zoals budgettering, schuldverlichting en kredietafschrijvingen."]
[]
[null,"Voor bedrijven zijn er sjablonen beschikbaar voor facturen, urenstaten, voorraadbeheer, financiële overzichten en projectplanning. Docenten en leerlingen/studenten hebben de beschikking over resources zoals bladen voor klassenschema’s, rapporten en aanwezigheidsinfo. Organiseer uw gezinsleven met maaltijdplanners, controlelijsten en sportschema’s. Elke sjabloon is zorgvuldig onderzocht, verfijnd en mettertijd verbeterd op basis van de feedback van duizenden gebruikers."]